{"text_format":"3","workbook":"xlsx","n_sheets":3,"sheets":["Relatório do Orçamento Mensal","Despesas Mensais","Dados Adicionais"],"not_rendered":{"charts":1,"defined_names":4,"pivot_tables":2},"read":"whole","date_system":"1900"}

{"sheet":"Relatório do Orçamento Mensal","index":0,"n_rows":34,"n_cols":13,"rows_kept":34,"merged":[[7,1,10,1],[7,5,10,5],[7,6,10,6],[12,1,16,1],[12,5,16,5],[12,6,16,6]]}
[null,"Visão Geral do Orçamento",{"$nulls":7},"Resumo do Orçamento"]
[null,"Saldo"]
[null,"Saldo Previsto","(Previsto menos despesas)",{"$nulls":3},{"$f":"D17-SUM(DetalhesOrçamento[Custo Previsto])","v":{"v":1585,"d":"R$ 1,585"}}]
[null,"Saldo Real","(Real menos despesas)",{"$nulls":3},{"$f":"D11-SUM(DetalhesOrçamento[Custo Real])","v":{"v":1740,"d":"R$ 1,740"}}]
[null,"Diferença","(Real menos previsto)",{"$nulls":3},{"$f":"G4-G3","v":{"v":155,"d":"R$ 155"}}]
[]
[null,"Renda",{"$nulls":3},"Despesas",{"$nulls":3},"Clique com o botão direito na Tabela Dinâmica abaixo e depois clique em Atualizar para atualizar"]
[null,"REAL","Renda 1",{"v":5800,"d":"$5,800"},null,"REAL",{"$f":"SUM(DetalhesOrçamento[Custo Real])","v":{"v":7860,"d":"R$ 7,860"}}]
[null,null,"Renda 2",{"v":2300,"d":"$2,300"},{"$nulls":5},"Categoria","Custo Previsto ","Custo Real ","Diferença "]
[null,null,"Renda extra",{"v":1500,"d":"$1,500"},{"$nulls":5},"Crianças",{"v":140,"d":"R$ 140"},{"v":140,"d":"R$ 140"},{"v":0,"d":"R$ 0"}]
[null,null,"Renda total",{"$f":"SUM(D8:D10)","v":{"v":9600,"d":"$9,600"}}]
[{"$nulls":9},"Lazer",{"v":400,"d":"R$ 400"},{"v":358,"d":"R$ 358"},{"v":42,"d":"R$ 42"}]
[null,"PREVISTO",{"$nulls":3},"PREVISTO",{"$f":"SUM(DetalhesOrçamento[Custo Previsto])","v":{"v":7915,"d":"R$ 7,915"}}]
[null,null,"Renda 1",{"v":6000,"d":"$6,000"},{"$nulls":5},"Alimentação",{"v":1100,"d":"R$ 1,100"},{"v":1320,"d":"R$ 1,320"},{"v":-220,"d":"-R$ 220"}]
[null,null,"Renda 2",{"v":1000,"d":"$1,000"}]
[null,null,"Renda extra",{"v":2500,"d":"$2,500"},{"$nulls":5},"Presentes e Caridade",{"v":100,"d":"R$ 100"},{"v":125,"d":"R$ 125"},{"v":-25,"d":"-R$ 25"}]
[null,null,"Renda total",{"$f":"SUM(D14:D16)","v":{"v":9500,"d":"$9,500"}}]
[{"$nulls":9},"Moradia",{"v":2830,"d":"R$ 2,830"},{"v":2702,"d":"R$ 2,702"},{"v":128,"d":"R$ 128"}]
[]
[{"$nulls":9},"Seguro",{"v":900,"d":"R$ 900"},{"v":900,"d":"R$ 900"},{"v":0,"d":"R$ 0"}]
[]
[{"$nulls":9},"Empréstimos",{"v":200,"d":"R$ 200"},{"v":200,"d":"R$ 200"},{"v":0,"d":"R$ 0"}]
[]
[{"$nulls":9},"Cuidados Pessoais",{"v":150,"d":"R$ 150"},{"v":140,"d":"R$ 140"},{"v":10,"d":"R$ 10"}]
[]
[{"$nulls":9},"Animais de Estimação",{"v":170,"d":"R$ 170"},{"v":100,"d":"R$ 100"},{"v":70,"d":"R$ 70"}]
[]
[{"$nulls":9},"Poupança ou Investimentos",{"v":200,"d":"R$ 200"},{"v":200,"d":"R$ 200"},{"v":0,"d":"R$ 0"}]
[]
[{"$nulls":9},"Impostos",{"v":300,"d":"R$ 300"},{"v":300,"d":"R$ 300"},{"v":0,"d":"R$ 0"}]
[]
[{"$nulls":9},"Transporte",{"v":1425,"d":"R$ 1,425"},{"v":1375,"d":"R$ 1,375"},{"v":50,"d":"R$ 50"}]
[]
[{"$nulls":9},"Total Geral",{"v":7915,"d":"R$ 7,915"},{"v":7860,"d":"R$ 7,860"},{"v":55,"d":"R$ 55"}]

{"sheet":"Despesas Mensais","index":1,"n_rows":63,"n_cols":7,"rows_kept":63}
[null,"Despesas Mensais"]
[null,"Descrição","Categoria","Custo Previsto","Custo Real","Diferença","Visão Geral do Custo Real"]
[null,"Atividades extracurriculares","Crianças",{"v":40,"d":"R$ 40"},{"v":40,"d":"R$ 40"},{"$f":"DetalhesOrçamento[[#This Row],[Custo Previsto]]-DetalhesOrçamento[[#This Row],[Custo Real]]","v":{"v":0,"d":"R$ 0"}},{"$f":"DetalhesOrçamento[[#This Row],[Custo Real]]","v":{"v":40,"d":"$40"}}]
[null,"Veterinário","Crianças",null,null,{"$f":"DetalhesOrçamento[[#This Row],[Custo Previsto]]-DetalhesOrçamento[[#This Row],[Custo Real]]","v":{"v":0,"d":"R$ 0"}},{"$f":"DetalhesOrçamento[[#This Row],[Custo Real]]","v":{"v":0,"d":"$0"}}]
[null,"Material Escolar","Crianças",null,null,{"$f":"DetalhesOrçamento[[#This Row],[Custo Previsto]]-DetalhesOrçamento[[#This Row],[Custo Real]]","v":{"v":0,"d":"R$ 0"}},{"$f":"DetalhesOrçamento[[#This Row],[Custo Real]]","v":{"v":0,"d":"$0"}}]
[null,"Mensalidade da Escola","Crianças",{"v":100,"d":"R$ 100"},{"v":100,"d":"R$ 100"},{"$f":"DetalhesOrçamento[[#This Row],[Custo Previsto]]-DetalhesOrçamento[[#This Row],[Custo Real]]","v":{"v":0,"d":"R$ 0"}},{"$f":"DetalhesOrçamento[[#This Row],[Custo Real]]","v":{"v":100,"d":"$100"}}]
[null,"Shows","Lazer",{"v":50,"d":"R$ 50"},{"v":40,"d":"R$ 40"},{"$f":"DetalhesOrçamento[[#This Row],[Custo Previsto]]-DetalhesOrçamento[[#This Row],[Custo Real]]","v":{"v":10,"d":"R$ 10"}},{"$f":"DetalhesOrçamento[[#This Row],[Custo Real]]","v":{"v":40,"d":"$40"}}]
[null,"Teatro","Lazer",{"v":200,"d":"R$ 200"},{"v":150,"d":"R$ 150"},{"$f":"DetalhesOrçamento[[#This Row],[Custo Previsto]]-DetalhesOrçamento[[#This Row],[Custo Real]]","v":{"v":50,"d":"R$ 50"}},{"$f":"DetalhesOrçamento[[#This Row],[Custo Real]]","v":{"v":150,"d":"$150"}}]
[null,"Cinema","Lazer",{"v":50,"d":"R$ 50"},{"v":28,"d":"R$ 28"},{"$f":"DetalhesOrçamento[[#This Row],[Custo Previsto]]-DetalhesOrçamento[[#This Row],[Custo Real]]","v":{"v":22,"d":"R$ 22"}},{"$f":"DetalhesOrçamento[[#This Row],[Custo Real]]","v":{"v":28,"d":"$28"}}]
[null,"Música (CDs, downloads etc.)","Lazer",{"v":50,"d":"R$ 50"},{"v":30,"d":"R$ 30"},{"$f":"DetalhesOrçamento[[#This Row],[Custo Previsto]]-DetalhesOrçamento[[#This Row],[Custo Real]]","v":{"v":20,"d":"R$ 20"}},{"$f":"DetalhesOrçamento[[#This Row],[Custo Real]]","v":{"v":30,"d":"$30"}}]
[null,"Eventos Esportivos","Lazer",{"v":0,"d":"R$ 0"},{"v":40,"d":"R$ 40"},{"$f":"DetalhesOrçamento[[#This Row],[Custo Previsto]]-DetalhesOrçamento[[#This Row],[Custo Real]]","v":{"v":-40,"d":"-R$ 40"}},{"$f":"DetalhesOrçamento[[#This Row],[Custo Real]]","v":{"v":40,"d":"$40"}}]
[null,"Vídeo/DVD (Compra)","Lazer",{"v":20,"d":"R$ 20"},{"v":50,"d":"R$ 50"},{"$f":"DetalhesOrçamento[[#This Row],[Custo Previsto]]-DetalhesOrçamento[[#This Row],[Custo Real]]","v":{"v":-30,"d":"-R$ 30"}},{"$f":"DetalhesOrçamento[[#This Row],[Custo Real]]","v":{"v":50,"d":"$50"}}]
[null,"Vídeo/DVD (Locação)","Lazer",{"v":30,"d":"R$ 30"},{"v":20,"d":"R$ 20"},{"$f":"DetalhesOrçamento[[#This Row],[Custo Previsto]]-DetalhesOrçamento[[#This Row],[Custo Real]]","v":{"v":10,"d":"R$ 10"}},{"$f":"DetalhesOrçamento[[#This Row],[Custo Real]]","v":{"v":20,"d":"$20"}}]
[null,"Restaurante","Alimentação",{"v":1000,"d":"R$ 1,000"},{"v":1200,"d":"R$ 1,200"},{"$f":"DetalhesOrçamento[[#This Row],[Custo Previsto]]-DetalhesOrçamento[[#This Row],[Custo Real]]","v":{"v":-200,"d":"-R$ 200"}},{"$f":"DetalhesOrçamento[[#This Row],[Custo Real]]","v":{"v":1200,"d":"$1,200"}}]
[null,"Mantimentos","Alimentação",{"v":100,"d":"R$ 100"},{"v":120,"d":"R$ 120"},{"$f":"DetalhesOrçamento[[#This Row],[Custo Previsto]]-DetalhesOrçamento[[#This Row],[Custo Real]]","v":{"v":-20,"d":"-R$ 20"}},{"$f":"DetalhesOrçamento[[#This Row],[Custo Real]]","v":{"v":120,"d":"$120"}}]
[null,"Caridade 1","Presentes e Caridade",{"v":75,"d":"R$ 75"},{"v":100,"d":"R$ 100"},{"$f":"DetalhesOrçamento[[#This Row],[Custo Previsto]]-DetalhesOrçamento[[#This Row],[Custo Real]]","v":{"v":-25,"d":"-R$ 25"}},{"$f":"DetalhesOrçamento[[#This Row],[Custo Real]]","v":{"v":100,"d":"$100"}}]
[null,"Caridade 2","Presentes e Caridade",{"v":25,"d":"R$ 25"},{"v":25,"d":"R$ 25"},{"$f":"DetalhesOrçamento[[#This Row],[Custo Previsto]]-DetalhesOrçamento[[#This Row],[Custo Real]]","v":{"v":0,"d":"R$ 0"}},{"$f":"DetalhesOrçamento[[#This Row],[Custo Real]]","v":{"v":25,"d":"$25"}}]
[null,"Doação 1","Presentes e Caridade",null,null,{"$f":"DetalhesOrçamento[[#This Row],[Custo Previsto]]-DetalhesOrçamento[[#This Row],[Custo Real]]","v":{"v":0,"d":"R$ 0"}},{"$f":"DetalhesOrçamento[[#This Row],[Custo Real]]","v":{"v":0,"d":"$0"}}]
[null,"Doação 2","Presentes e Caridade",null,null,{"$f":"DetalhesOrçamento[[#This Row],[Custo Previsto]]-DetalhesOrçamento[[#This Row],[Custo Real]]","v":{"v":0,"d":"R$ 0"}},{"$f":"DetalhesOrçamento[[#This Row],[Custo Real]]","v":{"v":0,"d":"$0"}}]
[null,"TV a Cabo/Satélite","Moradia",{"v":100,"d":"R$ 100"},{"v":100,"d":"R$ 100"},{"$f":"DetalhesOrçamento[[#This Row],[Custo Previsto]]-DetalhesOrçamento[[#This Row],[Custo Real]]","v":{"v":0,"d":"R$ 0"}},{"$f":"DetalhesOrçamento[[#This Row],[Custo Real]]","v":{"v":100,"d":"$100"}}]
[null,"Luz","Moradia",{"v":45,"d":"R$ 45"},{"v":50,"d":"R$ 50"},{"$f":"DetalhesOrçamento[[#This Row],[Custo Previsto]]-DetalhesOrçamento[[#This Row],[Custo Real]]","v":{"v":-5,"d":"-R$ 5"}},{"$f":"DetalhesOrçamento[[#This Row],[Custo Real]]","v":{"v":50,"d":"$50"}}]
[null,"Gás","Moradia",{"v":300,"d":"R$ 300"},{"v":400,"d":"R$ 400"},{"$f":"DetalhesOrçamento[[#This Row],[Custo Previsto]]-DetalhesOrçamento[[#This Row],[Custo Real]]","v":{"v":-100,"d":"-R$ 100"}},{"$f":"DetalhesOrçamento[[#This Row],[Custo Real]]","v":{"v":400,"d":"$400"}}]
[null,"Serviço de Faxina","Moradia",{"v":200,"d":"R$ 200"},null,{"$f":"DetalhesOrçamento[[#This Row],[Custo Previsto]]-DetalhesOrçamento[[#This Row],[Custo Real]]","v":{"v":200,"d":"R$ 200"}},{"$f":"DetalhesOrçamento[[#This Row],[Custo Real]]","v":{"v":0,"d":"$0"}}]
[null,"Manutenção","Moradia",{"v":200,"d":"R$ 200"},{"v":150,"d":"R$ 150"},{"$f":"DetalhesOrçamento[[#This Row],[Custo Previsto]]-DetalhesOrçamento[[#This Row],[Custo Real]]","v":{"v":50,"d":"R$ 50"}},{"$f":"DetalhesOrçamento[[#This Row],[Custo Real]]","v":{"v":150,"d":"$150"}}]
[null,"Hipoteca ou Aluguel","Moradia",{"v":1700,"d":"R$ 1,700"},{"v":1700,"d":"R$ 1,700"},{"$f":"DetalhesOrçamento[[#This Row],[Custo Previsto]]-DetalhesOrçamento[[#This Row],[Custo Real]]","v":{"v":0,"d":"R$ 0"}},{"$f":"DetalhesOrçamento[[#This Row],[Custo Real]]","v":{"v":1700,"d":"$1,700"}}]
[null,"Óleo/gás natural","Moradia",null,null,{"$f":"DetalhesOrçamento[[#This Row],[Custo Previsto]]-DetalhesOrçamento[[#This Row],[Custo Real]]","v":{"v":0,"d":"R$ 0"}},{"$f":"DetalhesOrçamento[[#This Row],[Custo Real]]","v":{"v":0,"d":"$0"}}]
[null,"Serviço de Internet/Online","Moradia",{"v":100,"d":"R$ 100"},{"v":100,"d":"R$ 100"},{"$f":"DetalhesOrçamento[[#This Row],[Custo Previsto]]-DetalhesOrçamento[[#This Row],[Custo Real]]","v":{"v":0,"d":"R$ 0"}},{"$f":"DetalhesOrçamento[[#This Row],[Custo Real]]","v":{"v":100,"d":"$100"}}]
[null,"Telefone celular","Moradia",{"v":60,"d":"R$ 60"},{"v":60,"d":"R$ 60"},{"$f":"DetalhesOrçamento[[#This Row],[Custo Previsto]]-DetalhesOrçamento[[#This Row],[Custo Real]]","v":{"v":0,"d":"R$ 0"}},{"$f":"DetalhesOrçamento[[#This Row],[Custo Real]]","v":{"v":60,"d":"$60"}}]
[null,"Telefone residencial","Moradia",{"v":35,"d":"R$ 35"},{"v":39,"d":"R$ 39"},{"$f":"DetalhesOrçamento[[#This Row],[Custo Previsto]]-DetalhesOrçamento[[#This Row],[Custo Real]]","v":{"v":-4,"d":"-R$ 4"}},{"$f":"DetalhesOrçamento[[#This Row],[Custo Real]]","v":{"v":39,"d":"$39"}}]
[null,"Suprimentos","Moradia",{"v":40,"d":"R$ 40"},{"v":55,"d":"R$ 55"},{"$f":"DetalhesOrçamento[[#This Row],[Custo Previsto]]-DetalhesOrçamento[[#This Row],[Custo Real]]","v":{"v":-15,"d":"-R$ 15"}},{"$f":"DetalhesOrçamento[[#This Row],[Custo Real]]","v":{"v":55,"d":"$55"}}]
[null,"Coleta e Reciclagem de Lixo","Moradia",{"v":25,"d":"R$ 25"},{"v":22,"d":"R$ 22"},{"$f":"DetalhesOrçamento[[#This Row],[Custo Previsto]]-DetalhesOrçamento[[#This Row],[Custo Real]]","v":{"v":3,"d":"R$ 3"}},{"$f":"DetalhesOrçamento[[#This Row],[Custo Real]]","v":{"v":22,"d":"$22"}}]
[null,"Água e Esgoto","Moradia",{"v":25,"d":"R$ 25"},{"v":26,"d":"R$ 26"},{"$f":"DetalhesOrçamento[[#This Row],[Custo Previsto]]-DetalhesOrçamento[[#This Row],[Custo Real]]","v":{"v":-1,"d":"-R$ 1"}},{"$f":"DetalhesOrçamento[[#This Row],[Custo Real]]","v":{"v":26,"d":"$26"}}]
[null,"Saúde","Seguro",{"v":400,"d":"R$ 400"},{"v":400,"d":"R$ 400"},{"$f":"DetalhesOrçamento[[#This Row],[Custo Previsto]]-DetalhesOrçamento[[#This Row],[Custo Real]]","v":{"v":0,"d":"R$ 0"}},{"$f":"DetalhesOrçamento[[#This Row],[Custo Real]]","v":{"v":400,"d":"$400"}}]
[null,"Residencial","Seguro",{"v":400,"d":"R$ 400"},{"v":400,"d":"R$ 400"},{"$f":"DetalhesOrçamento[[#This Row],[Custo Previsto]]-DetalhesOrçamento[[#This Row],[Custo Real]]","v":{"v":0,"d":"R$ 0"}},{"$f":"DetalhesOrçamento[[#This Row],[Custo Real]]","v":{"v":400,"d":"$400"}}]
[null,"Vida","Seguro",{"v":100,"d":"R$ 100"},{"v":100,"d":"R$ 100"},{"$f":"DetalhesOrçamento[[#This Row],[Custo Previsto]]-DetalhesOrçamento[[#This Row],[Custo Real]]","v":{"v":0,"d":"R$ 0"}},{"$f":"DetalhesOrçamento[[#This Row],[Custo Real]]","v":{"v":100,"d":"$100"}}]
[null,"Cartão de Crédito 1","Empréstimos",{"v":200,"d":"R$ 200"},{"v":200,"d":"R$ 200"},{"$f":"DetalhesOrçamento[[#This Row],[Custo Previsto]]-DetalhesOrçamento[[#This Row],[Custo Real]]","v":{"v":0,"d":"R$ 0"}},{"$f":"DetalhesOrçamento[[#This Row],[Custo Real]]","v":{"v":200,"d":"$200"}}]
[null,"Cartão de Crédito 2","Empréstimos",null,null,{"$f":"DetalhesOrçamento[[#This Row],[Custo Previsto]]-DetalhesOrçamento[[#This Row],[Custo Real]]","v":{"v":0,"d":"R$ 0"}},{"$f":"DetalhesOrçamento[[#This Row],[Custo Real]]","v":{"v":0,"d":"$0"}}]
[null,"Cartão de Crédito 3","Empréstimos",null,null,{"$f":"DetalhesOrçamento[[#This Row],[Custo Previsto]]-DetalhesOrçamento[[#This Row],[Custo Real]]","v":{"v":0,"d":"R$ 0"}},{"$f":"DetalhesOrçamento[[#This Row],[Custo Real]]","v":{"v":0,"d":"$0"}}]
[null,"Pessoal","Empréstimos",null,null,{"$f":"DetalhesOrçamento[[#This Row],[Custo Previsto]]-DetalhesOrçamento[[#This Row],[Custo Real]]","v":{"v":0,"d":"R$ 0"}},{"$f":"DetalhesOrçamento[[#This Row],[Custo Real]]","v":{"v":0,"d":"$0"}}]
[null,"Estudantil","Empréstimos",null,null,{"$f":"DetalhesOrçamento[[#This Row],[Custo Previsto]]-DetalhesOrçamento[[#This Row],[Custo Real]]","v":{"v":0,"d":"R$ 0"}},{"$f":"DetalhesOrçamento[[#This Row],[Custo Real]]","v":{"v":0,"d":"$0"}}]
[null,"Vestuário","Cuidados Pessoais",{"v":150,"d":"R$ 150"},{"v":140,"d":"R$ 140"},{"$f":"DetalhesOrçamento[[#This Row],[Custo Previsto]]-DetalhesOrçamento[[#This Row],[Custo Real]]","v":{"v":10,"d":"R$ 10"}},{"$f":"DetalhesOrçamento[[#This Row],[Custo Real]]","v":{"v":140,"d":"$140"}}]
[null,"Lavanderia","Cuidados Pessoais",null,null,{"$f":"DetalhesOrçamento[[#This Row],[Custo Previsto]]-DetalhesOrçamento[[#This Row],[Custo Real]]","v":{"v":0,"d":"R$ 0"}},{"$f":"DetalhesOrçamento[[#This Row],[Custo Real]]","v":{"v":0,"d":"$0"}}]
[null,"Cabeleireiro","Cuidados Pessoais",null,null,{"$f":"DetalhesOrçamento[[#This Row],[Custo Previsto]]-DetalhesOrçamento[[#This Row],[Custo Real]]","v":{"v":0,"d":"R$ 0"}},{"$f":"DetalhesOrçamento[[#This Row],[Custo Real]]","v":{"v":0,"d":"$0"}}]
[null,"Academia","Cuidados Pessoais",null,null,{"$f":"DetalhesOrçamento[[#This Row],[Custo Previsto]]-DetalhesOrçamento[[#This Row],[Custo Real]]","v":{"v":0,"d":"R$ 0"}},{"$f":"DetalhesOrçamento[[#This Row],[Custo Real]]","v":{"v":0,"d":"$0"}}]
[null,"Veterinário","Cuidados Pessoais",null,null,{"$f":"DetalhesOrçamento[[#This Row],[Custo Previsto]]-DetalhesOrçamento[[#This Row],[Custo Real]]","v":{"v":0,"d":"R$ 0"}},{"$f":"DetalhesOrçamento[[#This Row],[Custo Real]]","v":{"v":0,"d":"$0"}}]
[null,"Alimentação","Animais de Estimação",{"v":150,"d":"R$ 150"},{"v":75,"d":"R$ 75"},{"$f":"DetalhesOrçamento[[#This Row],[Custo Previsto]]-DetalhesOrçamento[[#This Row],[Custo Real]]","v":{"v":75,"d":"R$ 75"}},{"$f":"DetalhesOrçamento[[#This Row],[Custo Real]]","v":{"v":75,"d":"$75"}}]
[null,"Tosa","Animais de Estimação",{"v":20,"d":"R$ 20"},{"v":25,"d":"R$ 25"},{"$f":"DetalhesOrçamento[[#This Row],[Custo Previsto]]-DetalhesOrçamento[[#This Row],[Custo Real]]","v":{"v":-5,"d":"-R$ 5"}},{"$f":"DetalhesOrçamento[[#This Row],[Custo Real]]","v":{"v":25,"d":"$25"}}]
[null,"Veterinário","Animais de Estimação",null,null,{"$f":"DetalhesOrçamento[[#This Row],[Custo Previsto]]-DetalhesOrçamento[[#This Row],[Custo Real]]","v":{"v":0,"d":"R$ 0"}},{"$f":"DetalhesOrçamento[[#This Row],[Custo Real]]","v":{"v":0,"d":"$0"}}]
[null,"Brinquedos","Animais de Estimação",null,null,{"$f":"DetalhesOrçamento[[#This Row],[Custo Previsto]]-DetalhesOrçamento[[#This Row],[Custo Real]]","v":{"v":0,"d":"R$ 0"}},{"$f":"DetalhesOrçamento[[#This Row],[Custo Real]]","v":{"v":0,"d":"$0"}}]
[null,"Conta de investimento","Poupança ou Investimentos",{"v":200,"d":"R$ 200"},{"v":200,"d":"R$ 200"},{"$f":"DetalhesOrçamento[[#This Row],[Custo Previsto]]-DetalhesOrçamento[[#This Row],[Custo Real]]","v":{"v":0,"d":"R$ 0"}},{"$f":"DetalhesOrçamento[[#This Row],[Custo Real]]","v":{"v":200,"d":"$200"}}]
[null,"Conta de aposentadoria","Poupança ou Investimentos",null,null,{"$f":"DetalhesOrçamento[[#This Row],[Custo Previsto]]-DetalhesOrçamento[[#This Row],[Custo Real]]","v":{"v":0,"d":"R$ 0"}},{"$f":"DetalhesOrçamento[[#This Row],[Custo Real]]","v":{"v":0,"d":"$0"}}]
[null,"Federal","Impostos",{"v":300,"d":"R$ 300"},{"v":300,"d":"R$ 300"},{"$f":"DetalhesOrçamento[[#This Row],[Custo Previsto]]-DetalhesOrçamento[[#This Row],[Custo Real]]","v":{"v":0,"d":"R$ 0"}},{"$f":"DetalhesOrçamento[[#This Row],[Custo Real]]","v":{"v":300,"d":"$300"}}]
[null,"Municipal","Impostos",null,null,{"$f":"DetalhesOrçamento[[#This Row],[Custo Previsto]]-DetalhesOrçamento[[#This Row],[Custo Real]]","v":{"v":0,"d":"R$ 0"}},{"$f":"DetalhesOrçamento[[#This Row],[Custo Real]]","v":{"v":0,"d":"$0"}}]
[null,"Estadual","Impostos",null,null,{"$f":"DetalhesOrçamento[[#This Row],[Custo Previsto]]-DetalhesOrçamento[[#This Row],[Custo Real]]","v":{"v":0,"d":"R$ 0"}},{"$f":"DetalhesOrçamento[[#This Row],[Custo Real]]","v":{"v":0,"d":"$0"}}]
[null,"Tarifa de Ônibus/Táxi","Transporte",{"v":100,"d":"R$ 100"},{"v":150,"d":"R$ 150"},{"$f":"DetalhesOrçamento[[#This Row],[Custo Previsto]]-DetalhesOrçamento[[#This Row],[Custo Real]]","v":{"v":-50,"d":"-R$ 50"}},{"$f":"DetalhesOrçamento[[#This Row],[Custo Real]]","v":{"v":150,"d":"$150"}}]
[null,"Combustível","Transporte",{"v":450,"d":"R$ 450"},{"v":400,"d":"R$ 400"},{"$f":"DetalhesOrçamento[[#This Row],[Custo Previsto]]-DetalhesOrçamento[[#This Row],[Custo Real]]","v":{"v":50,"d":"R$ 50"}},{"$f":"DetalhesOrçamento[[#This Row],[Custo Real]]","v":{"v":400,"d":"$400"}}]
[null,"Seguro","Transporte",{"v":300,"d":"R$ 300"},{"v":300,"d":"R$ 300"},{"$f":"DetalhesOrçamento[[#This Row],[Custo Previsto]]-DetalhesOrçamento[[#This Row],[Custo Real]]","v":{"v":0,"d":"R$ 0"}},{"$f":"DetalhesOrçamento[[#This Row],[Custo Real]]","v":{"v":300,"d":"$300"}}]
[null,"Licenciamento","Transporte",{"v":25,"d":"R$ 25"},{"v":25,"d":"R$ 25"},{"$f":"DetalhesOrçamento[[#This Row],[Custo Previsto]]-DetalhesOrçamento[[#This Row],[Custo Real]]","v":{"v":0,"d":"R$ 0"}},{"$f":"DetalhesOrçamento[[#This Row],[Custo Real]]","v":{"v":25,"d":"$25"}}]
[null,"Manutenção","Transporte",{"v":100,"d":"R$ 100"},{"v":50,"d":"R$ 50"},{"$f":"DetalhesOrçamento[[#This Row],[Custo Previsto]]-DetalhesOrçamento[[#This Row],[Custo Real]]","v":{"v":50,"d":"R$ 50"}},{"$f":"DetalhesOrçamento[[#This Row],[Custo Real]]","v":{"v":50,"d":"$50"}}]
[null,"Estacionamento","Transporte",null,null,{"$f":"DetalhesOrçamento[[#This Row],[Custo Previsto]]-DetalhesOrçamento[[#This Row],[Custo Real]]","v":{"v":0,"d":"R$ 0"}},{"$f":"DetalhesOrçamento[[#This Row],[Custo Real]]","v":{"v":0,"d":"$0"}}]
[null,"Financiamento do carro","Transporte",{"v":450,"d":"R$ 450"},{"v":450,"d":"R$ 450"},{"$f":"DetalhesOrçamento[[#This Row],[Custo Previsto]]-DetalhesOrçamento[[#This Row],[Custo Real]]","v":{"v":0,"d":"R$ 0"}},{"$f":"DetalhesOrçamento[[#This Row],[Custo Real]]","v":{"v":450,"d":"$450"}}]
[null,"Total",null,{"$f":"SUBTOTAL(109,DetalhesOrçamento[Custo Previsto])","v":{"v":7915,"d":"R$ 7,915"}},{"$f":"SUBTOTAL(109,DetalhesOrçamento[Custo Real])","v":{"v":7860,"d":"R$ 7,860"}},{"$f":"SUBTOTAL(109,DetalhesOrçamento[Diferença])","v":{"v":55,"d":"R$ 55"}}]
[null,"Total",null,{"$f":"SUBTOTAL(109,#REF!)","v":{"$error":"#REF!"}},{"$f":"SUBTOTAL(109,#REF!)","v":{"$error":"#REF!"}},{"$f":"SUBTOTAL(109,#REF!)","v":{"$error":"#REF!"}}]

{"sheet":"Dados Adicionais","index":2,"n_rows":15,"n_cols":5,"rows_kept":15}
[null,"Tabela Dinâmica para gráfico Visão Geral do Orçamento",null,null,"Lista de Pesquisa para Categoria de Detalhes do Orçamento"]
[null,"Categoria","Custo",null,"Pesquisa de Categoria Orçamentária"]
[null,"Crianças",140,null,"Crianças"]
[null,"Lazer",358,null,"Lazer"]
[null,"Alimentação",1320,null,"Alimentação"]
[null,"Presentes e Caridade",125,null,"Presentes e Caridade"]
[null,"Moradia",2702,null,"Moradia"]
[null,"Seguro",900,null,"Seguro"]
[null,"Empréstimos",200,null,"Empréstimos"]
[null,"Cuidados Pessoais",140,null,"Cuidados Pessoais"]
[null,"Animais de Estimação",100,null,"Animais de Estimação"]
[null,"Poupança ou Investimentos",200,null,"Poupança ou Investimentos"]
[null,"Impostos",300,null,"Impostos"]
[null,"Transporte",1375,null,"Transporte"]
[null,"Total Geral",7860]